[Event "*** SCC Grand Prix: Titled Tuesday Blitz"]
[Site "Chess.com"]
[Date "2020.06.02"]
[Round "1"]
[White "Campelov"]
[Black "jlandaw"]
[Result "0-1"]
[WhiteElo "2154"]
[BlackElo "2523"]
[TimeControl "180+1"]
[EndTime "10:08:04 PDT"]
[Termination "jlandaw won on time"]

1. e4 {[%clk 0:02:58.8]} 1... e5 {[%clk 0:02:59.7]} 2. Nf3 {[%clk 0:02:58.1]}
2... Nc6 {[%clk 0:03:00]} 3. Bb5 {[%clk 0:02:56.9]} 3... a6 {[%clk 0:03:00.4]}
4. Ba4 {[%clk 0:02:56.5]} 4... Nf6 {[%clk 0:03:00.4]} 5. O-O {[%clk 0:02:55.6]}
5... Be7 {[%clk 0:03:00.2]} 6. Re1 {[%clk 0:02:55.3]} 6... b5 {[%clk 0:03:00.3]}
7. Bb3 {[%clk 0:02:55.6]} 7... d6 {[%clk 0:03:00.5]} 8. c3 {[%clk 0:02:55.5]}
8... O-O {[%clk 0:02:59.9]} 9. h3 {[%clk 0:02:56]} 9... Na5 {[%clk 0:03:00.1]}
10. Bc2 {[%clk 0:02:56.3]} 10... c5 {[%clk 0:03:00.6]} 11. d4 {[%clk 0:02:56.7]}
11... Qc7 {[%clk 0:03:00.6]} 12. Nbd2 {[%clk 0:02:57.2]} 12... cxd4 {[%clk
0:03:00.7]} 13. cxd4 {[%clk 0:02:57.1]} 13... Rd8 {[%clk 0:03:00.9]} 14. d5
{[%clk 0:02:44]} 14... Bd7 {[%clk 0:03:00.6]} 15. Nf1 {[%clk 0:02:43.1]} 15...
Rdc8 {[%clk 0:03:00.7]} 16. Re2 {[%clk 0:02:38]} 16... Bd8 {[%clk 0:02:34.9]}
17. Ng3 {[%clk 0:02:30.1]} 17... b4 {[%clk 0:02:21.2]} 18. b3 {[%clk 0:02:21.8]}
18... Nb7 {[%clk 0:02:07.3]} 19. Bg5 {[%clk 0:02:17.9]} 19... Nc5 {[%clk
0:02:03.7]} 20. Qd2 {[%clk 0:02:04.2]} 20... Bb5 {[%clk 0:01:50.4]} 21. Ree1
{[%clk 0:02:02.4]} 21... a5 {[%clk 0:01:42.6]} 22. Rac1 {[%clk 0:02:01.5]} 22...
Ne8 {[%clk 0:01:37.8]} 23. Nf5 {[%clk 0:01:48.1]} 23... f6 {[%clk 0:01:36.7]}
24. Be3 {[%clk 0:01:44.7]} 24... Qa7 {[%clk 0:01:25.7]} 25. N3h4 {[%clk
0:01:10.9]} 25... Bb6 {[%clk 0:01:25.5]} 26. Kh1 {[%clk 0:01:06]} 26... Qf7
{[%clk 0:01:13.7]} 27. f3 {[%clk 0:01:02.6]} 27... Rc7 {[%clk 0:01:13.2]} 28.
Qf2 {[%clk 0:01:01.8]} 28... Rac8 {[%clk 0:01:12.1]} 29. Qg3 {[%clk 0:00:58.3]}
29... Kh8 {[%clk 0:01:12.3]} 30. Bb1 {[%clk 0:00:51.3]} 30... a4 {[%clk
0:01:06.3]} 31. bxa4 {[%clk 0:00:49.7]} 31... Nxa4 {[%clk 0:01:07.2]} 32. Bxb6
{[%clk 0:00:49]} 32... Nxb6 {[%clk 0:01:08.1]} 33. Rxc7 {[%clk 0:00:42.2]} 33...
Rxc7 {[%clk 0:01:09]} 34. Ne3 {[%clk 0:00:31.6]} 34... Na4 {[%clk 0:01:02.6]}
35. Nhf5 {[%clk 0:00:27.4]} 35... Nc3 {[%clk 0:00:58.3]} 36. Qf2 {[%clk
0:00:26.7]} 36... g6 {[%clk 0:00:57.5]} 37. Ng3 {[%clk 0:00:26.4]} 37... Rb7
{[%clk 0:00:49.3]} 38. Qd2 {[%clk 0:00:24.6]} 38... Nc7 {[%clk 0:00:47.9]} 39.
Bd3 {[%clk 0:00:24]} 39... Na6 {[%clk 0:00:47.3]} 40. Bxb5 {[%clk 0:00:23.4]}
40... Rxb5 {[%clk 0:00:48.2]} 41. a3 {[%clk 0:00:20.6]} 41... Qc7 {[%clk
0:00:47.6]} 42. axb4 {[%clk 0:00:20.2]} 42... Nxb4 {[%clk 0:00:48]} 43. Rc1
{[%clk 0:00:17.9]} 43... Rc5 {[%clk 0:00:48.2]} 44. Nd1 {[%clk 0:00:16.4]} 44...
Nxe4 {[%clk 0:00:37.3]} 45. Rxc5 {[%clk 0:00:16.2]} 45... Nxg3+ {[%clk
0:00:37.4]} 46. Kh2 {[%clk 0:00:10.2]} 46... Qxc5 {[%clk 0:00:32.9]} 47. Kxg3
{[%clk 0:00:09.7]} 47... Nxd5 {[%clk 0:00:33.2]} 48. Qb2 {[%clk 0:00:07.9]}
48... Qb6 {[%clk 0:00:30.5]} 49. Qa2 {[%clk 0:00:07.3]} 49... Qb7 {[%clk
0:00:30.3]} 50. Qa5 {[%clk 0:00:06.6]} 50... Kg7 {[%clk 0:00:26.9]} 51. Nf2
{[%clk 0:00:06.1]} 51... Nf4 {[%clk 0:00:23.2]} 52. Qa4 {[%clk 0:00:05.4]} 52...
Qe7 {[%clk 0:00:21.8]} 53. Ne4 {[%clk 0:00:04.6]} 53... d5 {[%clk 0:00:19.6]}
54. Nc3 {[%clk 0:00:03.7]} 54... d4 {[%clk 0:00:19.7]} 55. Ne4 {[%clk
0:00:03.7]} 55... d3 {[%clk 0:00:20.2]} 56. Qc4 {[%clk 0:00:02.8]} 56... f5
{[%clk 0:00:20.2]} 57. Nd2 {[%clk 0:00:02.6]} 57... Qd6 {[%clk 0:00:19.2]} 58.
Kh2 {[%clk 0:00:02.2]} 58... Ne6 {[%clk 0:00:19.2]} 59. Qb5 {[%clk 0:00:01.6]}
59... e4+ {[%clk 0:00:19.2]} 0-1

[Event "*** SCC Grand Prix: Titled Tuesday Blitz"]
[Site "Chess.com"]
[Date "2020.06.02"]
[Round "1"]
[White "Pavel_Mir"]
[Black "Korchmar_Vasiliy"]
[Result "0-1"]
[WhiteElo "2252"]
[BlackElo "2593"]
[TimeControl "180+1"]
[EndTime "10:08:05 PDT"]
[Termination "Korchmar_Vasiliy won by resignation"]

1. e4 {[%clk 0:03:00.1]} 1... c5 {[%clk 0:02:59.8]} 2. Nf3 {[%clk 0:02:59.7]}
2... d6 {[%clk 0:03:00.3]} 3. d4 {[%clk 0:02:59.9]} 3... cxd4 {[%clk 0:03:01.2]}
4. Nxd4 {[%clk 0:03:00.3]} 4... Nf6 {[%clk 0:03:01.8]} 5. Nc3 {[%clk 0:03:00.9]}
5... Nc6 {[%clk 0:03:02.3]} 6. f4 {[%clk 0:03:01.1]} 6... g6 {[%clk 0:02:54.9]}
7. Nf3 {[%clk 0:02:59.7]} 7... Bg7 {[%clk 0:02:53.5]} 8. e5 {[%clk 0:02:59.7]}
8... Ng4 {[%clk 0:02:39.2]} 9. h3 {[%clk 0:02:48.2]} 9... Nh6 {[%clk 0:02:38.6]}
10. exd6 {[%clk 0:02:48.3]} 10... Nf5 {[%clk 0:02:32.8]} 11. dxe7 {[%clk
0:02:30.5]} 11... Qxe7+ {[%clk 0:01:56.1]} 12. Qe2 {[%clk 0:02:30]} 12... Ng3
{[%clk 0:01:55.7]} 13. Qxe7+ {[%clk 0:02:29.3]} 13... Nxe7 {[%clk 0:01:55.4]}
14. Bb5+ {[%clk 0:02:27.8]} 14... Bd7 {[%clk 0:01:49.1]} 15. Bxd7+ {[%clk
0:02:23.4]} 15... Kxd7 {[%clk 0:01:50]} 16. Rg1 {[%clk 0:02:23.1]} 16... Rhe8
{[%clk 0:01:42.1]} 17. Kf2 {[%clk 0:02:20.7]} 17... Nef5 {[%clk 0:01:41.8]} 18.
Rd1+ {[%clk 0:02:04.2]} 18... Kc6 {[%clk 0:01:12.1]} 19. Ne5+ {[%clk 0:01:54.1]}
19... Bxe5 {[%clk 0:01:11.9]} 20. fxe5 {[%clk 0:01:54.1]} 20... Rxe5 {[%clk
0:01:12.4]} 21. Bf4 {[%clk 0:01:53.7]} 21... Ne4+ {[%clk 0:01:12.7]} 22. Kf3
{[%clk 0:01:22.5]} 22... Nxc3 {[%clk 0:00:15.8]} 23. Bxe5 {[%clk 0:01:21.9]}
23... Nxd1 {[%clk 0:00:15.5]} 24. Rxd1 {[%clk 0:01:22.4]} 24... Re8 {[%clk
0:00:16]} 25. Bf4 {[%clk 0:01:10]} 25... Re6 {[%clk 0:00:11.9]} 26. g4 {[%clk
0:01:08.2]} 26... Ne7 {[%clk 0:00:10.7]} 27. c4 {[%clk 0:01:01.8]} 27... f6
{[%clk 0:00:10.9]} 28. b4 {[%clk 0:01:00.8]} 28... g5 {[%clk 0:00:08.6]} 29. b5+
{[%clk 0:00:32.7]} 29... Kc5 {[%clk 0:00:08.4]} 30. Be3+ {[%clk 0:00:26.1]}
30... Kxc4 {[%clk 0:00:08.8]} 31. a4 {[%clk 0:00:26]} 31... a6 {[%clk
0:00:05.7]} 32. bxa6 {[%clk 0:00:17.7]} 32... bxa6 {[%clk 0:00:06.6]} 33. Rd7
{[%clk 0:00:17.1]} 33... h6 {[%clk 0:00:06.6]} 34. Ra7 {[%clk 0:00:16.7]} 34...
Nc6 {[%clk 0:00:07.1]} 35. Rc7 {[%clk 0:00:16.5]} 35... Kd5 {[%clk 0:00:06.2]}
36. Rc8 {[%clk 0:00:16.6]} 36... Rd6 {[%clk 0:00:05.9]} 37. Ra8 {[%clk
0:00:16.6]} 37... Ne5+ {[%clk 0:00:06]} 38. Ke2 {[%clk 0:00:16.1]} 38... Ke4
{[%clk 0:00:06.1]} 39. Re8 {[%clk 0:00:14.6]} 39... Rc6 {[%clk 0:00:05.6]} 40.
Bd2 {[%clk 0:00:12.8]} 40... Rc2 {[%clk 0:00:05.6]} 41. Kd1 {[%clk 0:00:12.7]}
41... Ra2 {[%clk 0:00:05.9]} 42. Re6 {[%clk 0:00:09.3]} 42... Rxa4 {[%clk
0:00:02.1]} 43. Rxf6 {[%clk 0:00:09.3]} 43... Ra1+ {[%clk 0:00:02.4]} 44. Kc2
{[%clk 0:00:09.2]} 44... Ra2+ {[%clk 0:00:02.9]} 45. Kd1 {[%clk 0:00:09.4]}
45... Nf3 {[%clk 0:00:02.9]} 46. Re6+ {[%clk 0:00:07.5]} 46... Kd3 {[%clk
0:00:03]} 47. Re2 {[%clk 0:00:07.3]} 47... Ra1+ {[%clk 0:00:02.7]} 48. Bc1
{[%clk 0:00:06.1]} 48... Rxc1+ {[%clk 0:00:03.3]} 49. Kxc1 {[%clk 0:00:06]}
49... Kxe2 {[%clk 0:00:04.2]} 0-1

[Event "*** SCC Grand Prix: Titled Tuesday Blitz"]
[Site "Chess.com"]
[Date "2020.06.02"]
[Round "1"]
[White "Natalya_Buksa"]
[Black "CMS13"]
[Result "1-0"]
[WhiteElo "2557"]
[BlackElo "2209"]
[TimeControl "180+1"]
[EndTime "10:08:08 PDT"]
[Termination "Natalya_Buksa won by resignation"]

1. e4 {[%clk 0:03:00]} 1... e5 {[%clk 0:02:59.9]} 2. Nf3 {[%clk 0:02:58.6]} 2...
Nc6 {[%clk 0:02:59.8]} 3. Bc4 {[%clk 0:02:58]} 3... Nf6 {[%clk 0:02:58.2]} 4.
Ng5 {[%clk 0:02:57.7]} 4... d5 {[%clk 0:02:57.5]} 5. exd5 {[%clk 0:02:58.6]}
5... Na5 {[%clk 0:02:57]} 6. Bb5+ {[%clk 0:02:59.3]} 6... c6 {[%clk 0:02:57]} 7.
dxc6 {[%clk 0:03:00.2]} 7... bxc6 {[%clk 0:02:57.9]} 8. Bd3 {[%clk 0:03:00.8]}
8... h6 {[%clk 0:02:56]} 9. Ne4 {[%clk 0:02:58.7]} 9... Be7 {[%clk 0:02:56.2]}
10. Nxf6+ {[%clk 0:02:50.6]} 10... Bxf6 {[%clk 0:02:56]} 11. b4 {[%clk
0:02:50.3]} 11... Nb7 {[%clk 0:02:55.2]} 12. Nc3 {[%clk 0:02:47.2]} 12... O-O
{[%clk 0:02:54.4]} 13. O-O {[%clk 0:02:46.8]} 13... Be7 {[%clk 0:02:54.4]} 14.
Rb1 {[%clk 0:02:44.7]} 14... f5 {[%clk 0:02:53.8]} 15. Bc4+ {[%clk 0:02:41.1]}
15... Kh8 {[%clk 0:02:53.4]} 16. d3 {[%clk 0:02:41.6]} 16... Qe8 {[%clk
0:02:49]} 17. f4 {[%clk 0:02:30.5]} 17... exf4 {[%clk 0:02:37.7]} 18. Bxf4
{[%clk 0:02:29.6]} 18... Nd6 {[%clk 0:02:31.2]} 19. Bb3 {[%clk 0:02:24]} 19...
Qg6 {[%clk 0:02:25.5]} 20. Kh1 {[%clk 0:02:22.4]} 20... Bb7 {[%clk 0:02:23.5]}
21. Na4 {[%clk 0:02:20.8]} 21... c5 {[%clk 0:02:21]} 22. Qd2 {[%clk 0:01:58.3]}
22... cxb4 {[%clk 0:02:14.8]} 23. Nc5 {[%clk 0:01:57.9]} 23... Bc6 {[%clk
0:02:12.6]} 24. Ne6 {[%clk 0:01:56.7]} 24... Rfe8 {[%clk 0:02:04.4]} 25. Rbe1
{[%clk 0:01:55.2]} 25... Nb5 {[%clk 0:01:51.8]} 26. Qf2 {[%clk 0:01:34.9]} 26...
Bh4 {[%clk 0:01:42.6]} 27. Bg3 {[%clk 0:01:30.9]} 27... Bxg3 {[%clk 0:01:35.2]}
28. Qxg3 {[%clk 0:01:30.8]} 28... Qxg3 {[%clk 0:01:28.5]} 29. hxg3 {[%clk
0:01:31.7]} 29... g6 {[%clk 0:01:24.2]} 30. Bc4 {[%clk 0:01:30.2]} 30... Nd6
{[%clk 0:01:01.9]} 31. Bb3 {[%clk 0:01:24]} 31... Nb5 {[%clk 0:00:54.6]} 32. d4
{[%clk 0:01:20.1]} 32... a5 {[%clk 0:00:47.3]} 33. d5 {[%clk 0:01:19.4]} 33...
Bd7 {[%clk 0:00:46.8]} 34. Nf4 {[%clk 0:01:13.8]} 34... Kg7 {[%clk 0:00:42.7]}
35. Ba4 {[%clk 0:01:05.2]} 35... Rad8 {[%clk 0:00:39.1]} 36. Ne6+ {[%clk
0:00:56.3]} 36... Bxe6 {[%clk 0:00:39.2]} 37. dxe6 {[%clk 0:00:56.5]} 37... Rd5
{[%clk 0:00:30.8]} 38. Rd1 {[%clk 0:00:49.1]} 38... Rxd1 {[%clk 0:00:26.5]} 39.
Rxd1 {[%clk 0:00:48.6]} 39... Nc3 {[%clk 0:00:26.6]} 40. Rd7+ {[%clk 0:00:46.4]}
40... Kf6 {[%clk 0:00:25.7]} 41. Bb3 {[%clk 0:00:47.1]} 41... Re7 {[%clk
0:00:24.1]} 42. Rd8 {[%clk 0:00:44.6]} 42... Ne4 {[%clk 0:00:23.1]} 43. Kh2
{[%clk 0:00:42.8]} 43... Nc5 {[%clk 0:00:20.6]} 44. Rf8+ {[%clk 0:00:42.2]}
44... Kg7 {[%clk 0:00:19.3]} 45. Ra8 {[%clk 0:00:39.4]} 45... Nxe6 {[%clk
0:00:18.9]} 46. Rxa5 {[%clk 0:00:33.9]} 46... Nd4 {[%clk 0:00:19]} 47. Ra4
{[%clk 0:00:32.1]} 47... Nxb3 {[%clk 0:00:18.8]} 48. cxb3 {[%clk 0:00:32.1]}
48... Rb7 {[%clk 0:00:18.1]} 49. Kg1 {[%clk 0:00:31.3]} 49... Kf6 {[%clk
0:00:18.4]} 50. Kf2 {[%clk 0:00:31.8]} 50... Ke5 {[%clk 0:00:18.9]} 51. Ra6
{[%clk 0:00:31.9]} 51... Rd7 {[%clk 0:00:16.4]} 52. Ke3 {[%clk 0:00:31.6]} 52...
Rc7 {[%clk 0:00:15.4]} 53. Rxg6 {[%clk 0:00:30.9]} 53... Rc2 {[%clk 0:00:15.3]}
54. Kf3 {[%clk 0:00:28.6]} 54... Rxa2 {[%clk 0:00:15.3]} 55. Rb6 {[%clk
0:00:29]} 55... Rc2 {[%clk 0:00:12]} 56. Rb5+ {[%clk 0:00:28.6]} 56... Kf6
{[%clk 0:00:11.4]} 57. Rxb4 {[%clk 0:00:28.7]} 57... Rc3+ {[%clk 0:00:11.6]} 58.
Kf4 {[%clk 0:00:28.9]} 58... Rc2 {[%clk 0:00:09.9]} 59. Rb6+ {[%clk 0:00:28.8]}
59... Kg7 {[%clk 0:00:09.9]} 60. Kxf5 {[%clk 0:00:29.1]} 60... Rxg2 {[%clk
0:00:10.1]} 61. Rb7+ {[%clk 0:00:28.7]} 61... Kg8 {[%clk 0:00:09]} 62. g4 {[%clk
0:00:29]} 62... Rf2+ {[%clk 0:00:09]} 63. Kg6 {[%clk 0:00:29.4]} 63... Rf4
{[%clk 0:00:07.8]} 64. Rb8+ {[%clk 0:00:28.7]} 64... Rf8 {[%clk 0:00:07.9]} 65.
Rxf8+ {[%clk 0:00:29.2]} 65... Kxf8 {[%clk 0:00:08.8]} 66. Kxh6 {[%clk 0:00:30]}
66... Ke7 {[%clk 0:00:09.2]} 67. g5 {[%clk 0:00:30.7]} 67... Kd6 {[%clk
0:00:09.7]} 68. Kh7 {[%clk 0:00:31.2]} 68... Kc5 {[%clk 0:00:10.5]} 69. g6
{[%clk 0:00:32]} 69... Kb4 {[%clk 0:00:11.4]} 70. g7 {[%clk 0:00:32.9]} 70...
Kxb3 {[%clk 0:00:12.3]} 71. g8=Q+ {[%clk 0:00:33.6]} 1-0

[Event "*** SCC Grand Prix: Titled Tuesday Blitz"]
[Site "Chess.com"]
[Date "2020.06.02"]
[Round "1"]
[White "TheoSlade"]
[Black "GMHess"]
[Result "0-1"]
[WhiteElo "2376"]
[BlackElo "2734"]
[TimeControl "180+1"]
[EndTime "10:08:09 PDT"]
[Termination "GMHess won on time"]

1. d4 {[%clk 0:03:00.9]} 1... g6 {[%clk 0:02:59.3]} 2. c4 {[%clk 0:03:01.2]}
2... Bg7 {[%clk 0:02:53.8]} 3. e4 {[%clk 0:03:01.7]} 3... d6 {[%clk 0:02:43]} 4.
Nc3 {[%clk 0:03:01.4]} 4... e5 {[%clk 0:02:33.9]} 5. dxe5 {[%clk 0:03:01.9]}
5... dxe5 {[%clk 0:02:24.7]} 6. Qxd8+ {[%clk 0:03:02.8]} 6... Kxd8 {[%clk
0:02:24.9]} 7. f4 {[%clk 0:03:03.7]} 7... Nc6 {[%clk 0:02:24.5]} 8. Nf3 {[%clk
0:03:03.3]} 8... Bg4 {[%clk 0:02:22.7]} 9. Be2 {[%clk 0:02:46.8]} 9... Bxf3
{[%clk 0:02:13.3]} 10. gxf3 {[%clk 0:02:40.9]} 10... Nd4 {[%clk 0:02:13.7]} 11.
O-O {[%clk 0:02:35.2]} 11... exf4 {[%clk 0:01:55.6]} 12. Rd1 {[%clk 0:02:21.5]}
12... g5 {[%clk 0:01:34]} 13. h4 {[%clk 0:02:13.2]} 13... h6 {[%clk 0:01:21.6]}
14. Nb5 {[%clk 0:02:05.6]} 14... c5 {[%clk 0:01:17.3]} 15. Kf2 {[%clk
0:01:57.1]} 15... Ke7 {[%clk 0:00:49.2]} 16. Nc7 {[%clk 0:01:53.4]} 16... Rd8
{[%clk 0:00:34.2]} 17. Nd5+ {[%clk 0:01:53.3]} 17... Kd6 {[%clk 0:00:33.3]} 18.
Bd2 {[%clk 0:01:39.5]} 18... Ne7 {[%clk 0:00:22.8]} 19. Bc3 {[%clk 0:01:34.7]}
19... Nxd5 {[%clk 0:00:21.5]} 20. cxd5 {[%clk 0:01:29.8]} 20... Be5 {[%clk
0:00:20.8]} 21. Rg1 {[%clk 0:01:25]} 21... f6 {[%clk 0:00:20.6]} 22. Rh1 {[%clk
0:01:23.1]} 22... b5 {[%clk 0:00:18.1]} 23. b4 {[%clk 0:01:11.2]} 23... Nxe2
{[%clk 0:00:10.2]} 24. Bxe5+ {[%clk 0:01:11.3]} 24... Kxe5 {[%clk 0:00:10]} 25.
Kxe2 {[%clk 0:01:12.2]} 25... cxb4 {[%clk 0:00:10]} 26. Rab1 {[%clk 0:01:07.1]}
26... a5 {[%clk 0:00:09.6]} 27. a3 {[%clk 0:01:07.3]} 27... Rc8 {[%clk
0:00:09.2]} 28. axb4 {[%clk 0:01:06.3]} 28... a4 {[%clk 0:00:09.7]} 29. Rbc1
{[%clk 0:01:01.7]} 29... g4 {[%clk 0:00:09.2]} 30. Rc6 {[%clk 0:00:36.6]} 30...
Rxc6 {[%clk 0:00:08.7]} 31. dxc6 {[%clk 0:00:37.5]} 31... g3 {[%clk 0:00:08.7]}
32. Rd1 {[%clk 0:00:32.5]} 32... Ra8 {[%clk 0:00:05.1]} 33. c7 {[%clk
0:00:20.6]} 33... Rc8 {[%clk 0:00:05]} 34. Rd5+ {[%clk 0:00:17.6]} 34... Ke6
{[%clk 0:00:05.5]} 35. Rxb5 {[%clk 0:00:17.8]} 35... Rxc7 {[%clk 0:00:06.2]} 36.
Rb6+ {[%clk 0:00:16.7]} 36... Kf7 {[%clk 0:00:04.8]} 37. Kf1 {[%clk 0:00:15.8]}
37... Rc1+ {[%clk 0:00:04.6]} 38. Kg2 {[%clk 0:00:15.8]} 38... Rc2+ {[%clk
0:00:05.5]} 39. Kg1 {[%clk 0:00:15.3]} 39... Rc3 {[%clk 0:00:05.2]} 40. Kg2
{[%clk 0:00:14.8]} 40... Rc2+ {[%clk 0:00:05.3]} 41. Kg1 {[%clk 0:00:14.3]}
41... Rf2 {[%clk 0:00:06]} 42. Ra6 {[%clk 0:00:13.3]} 42... Rxf3 {[%clk
0:00:06.3]} 43. Rxa4 {[%clk 0:00:13]} 43... Re3 {[%clk 0:00:06.8]} 44. Ra7+
{[%clk 0:00:13]} 44... Kg6 {[%clk 0:00:06.4]} 45. Re7 {[%clk 0:00:11.2]} 45...
Kh5 {[%clk 0:00:05.1]} 46. b5 {[%clk 0:00:09.8]} 46... f3 {[%clk 0:00:05.4]} 47.
Kf1 {[%clk 0:00:08.4]} 47... g2+ {[%clk 0:00:05.5]} 48. Kf2 {[%clk 0:00:08.1]}
48... Re2+ {[%clk 0:00:05.9]} 49. Kg1 {[%clk 0:00:07.9]} 49... Re1+ {[%clk
0:00:06.1]} 50. Kf2 {[%clk 0:00:07.6]} 50... g1=Q+ {[%clk 0:00:07]} 51. Kxf3
{[%clk 0:00:08.1]} 51... Re3+ {[%clk 0:00:05.7]} 52. Kf4 {[%clk 0:00:08.5]}
52... Qg3+ {[%clk 0:00:05.8]} 53. Kf5 {[%clk 0:00:08.7]} 53... Qg4+ {[%clk
0:00:06.2]} 54. Kxf6 {[%clk 0:00:08.5]} 54... Qxh4+ {[%clk 0:00:06.7]} 55. Kf7
{[%clk 0:00:05.1]} 55... Qxe7+ {[%clk 0:00:06.2]} 56. Kxe7 {[%clk 0:00:05.3]}
56... Rxe4+ {[%clk 0:00:07.1]} 57. Kf6 {[%clk 0:00:05.2]} 57... Rb4 {[%clk
0:00:08]} 58. Kg7 {[%clk 0:00:04.3]} 58... Rxb5 {[%clk 0:00:08.1]} 59. Kf6
{[%clk 0:00:03.2]} 59... Kg4 {[%clk 0:00:08.3]} 0-1

[Event "*** SCC Grand Prix: Titled Tuesday Blitz"]
[Site "Chess.com"]
[Date "2020.06.02"]
[Round "1"]
[White "yamalchess"]
[Black "Oleksandr_Bortnyk"]
[Result "0-1"]
[WhiteElo "2448"]
[BlackElo "2961"]
[TimeControl "180+1"]
[EndTime "10:08:12 PDT"]
[Termination "Oleksandr_Bortnyk won on time"]

1. d4 {[%clk 0:03:00.9]} 1... Nf6 {[%clk 0:02:53.9]} 2. c4 {[%clk 0:03:00.3]}
2... b6 {[%clk 0:02:52.9]} 3. Nc3 {[%clk 0:03:00.2]} 3... Bb7 {[%clk 0:02:53.8]}
4. Nf3 {[%clk 0:02:55.9]} 4... g6 {[%clk 0:02:52.2]} 5. g3 {[%clk 0:02:54.6]}
5... Bg7 {[%clk 0:02:52.1]} 6. Bg2 {[%clk 0:02:54.8]} 6... O-O {[%clk
0:02:52.1]} 7. O-O {[%clk 0:02:55.3]} 7... Ne4 {[%clk 0:02:52.2]} 8. Qc2 {[%clk
0:02:53.8]} 8... Nxc3 {[%clk 0:02:51.5]} 9. bxc3 {[%clk 0:02:51.3]} 9... Nc6
{[%clk 0:02:51.6]} 10. e4 {[%clk 0:02:48]} 10... Na5 {[%clk 0:02:51.9]} 11. Nd2
{[%clk 0:02:44.7]} 11... c5 {[%clk 0:02:46.8]} 12. d5 {[%clk 0:02:26.3]} 12...
d6 {[%clk 0:02:41.1]} 13. Re1 {[%clk 0:02:22.3]} 13... Qd7 {[%clk 0:02:29.2]}
14. Bf1 {[%clk 0:02:11.5]} 14... Rae8 {[%clk 0:02:25.4]} 15. Nb3 {[%clk
0:02:10.7]} 15... Qa4 {[%clk 0:02:21.7]} 16. Nd4 {[%clk 0:01:47.1]} 16... Qxc2
{[%clk 0:02:16.3]} 17. Nxc2 {[%clk 0:01:47]} 17... Bxc3 {[%clk 0:02:17.2]} 18.
Bh6 {[%clk 0:01:43.7]} 18... Bxa1 {[%clk 0:01:57.2]} 19. Rxa1 {[%clk 0:01:39.4]}
19... e6 {[%clk 0:01:56.1]} 20. Bxf8 {[%clk 0:01:38.4]} 20... Kxf8 {[%clk
0:01:57]} 21. Ne3 {[%clk 0:01:35.2]} 21... exd5 {[%clk 0:01:53.8]} 22. exd5
{[%clk 0:01:34.1]} 22... Re4 {[%clk 0:01:53.2]} 23. Rc1 {[%clk 0:01:31.9]} 23...
Rd4 {[%clk 0:01:49.3]} 24. Rc2 {[%clk 0:01:28.6]} 24... Bc8 {[%clk 0:01:41.1]}
25. f3 {[%clk 0:01:21.1]} 25... g5 {[%clk 0:01:20]} 26. Kf2 {[%clk 0:01:19.3]}
26... f5 {[%clk 0:01:17.9]} 27. Ke1 {[%clk 0:00:50.2]} 27... f4 {[%clk
0:01:11.4]} 28. gxf4 {[%clk 0:00:49.6]} 28... gxf4 {[%clk 0:01:12.3]} 29. Nd1
{[%clk 0:00:42.5]} 29... b5 {[%clk 0:00:37.7]} 30. cxb5 {[%clk 0:00:40.9]} 30...
Rxd5 {[%clk 0:00:38]} 31. Nc3 {[%clk 0:00:39.5]} 31... Re5+ {[%clk 0:00:38.3]}
32. Kf2 {[%clk 0:00:39.6]} 32... Be6 {[%clk 0:00:32.9]} 33. Ne4 {[%clk
0:00:37.7]} 33... Ke7 {[%clk 0:00:32.3]} 34. Rd2 {[%clk 0:00:34.2]} 34... Nb7
{[%clk 0:00:31.2]} 35. a4 {[%clk 0:00:32.3]} 35... d5 {[%clk 0:00:31]} 36. Nc3
{[%clk 0:00:31]} 36... d4 {[%clk 0:00:29.5]} 37. Ne2 {[%clk 0:00:28.7]} 37...
Rf5 {[%clk 0:00:17.4]} 38. Rb2 {[%clk 0:00:19.9]} 38... Rf8 {[%clk 0:00:16.7]}
39. b6 {[%clk 0:00:18.4]} 39... a5 {[%clk 0:00:15.7]} 40. Nc1 {[%clk 0:00:14.7]}
40... c4 {[%clk 0:00:15.3]} 41. Rb5 {[%clk 0:00:14.2]} 41... d3 {[%clk
0:00:14.1]} 42. Na2 {[%clk 0:00:13.5]} 42... Bd7 {[%clk 0:00:12.6]} 43. Rh5
{[%clk 0:00:10.8]} 43... Rf7 {[%clk 0:00:09.3]} 44. Nc3 {[%clk 0:00:10.5]} 44...
Kd6 {[%clk 0:00:08.4]} 45. Ne4+ {[%clk 0:00:09.7]} 45... Kc6 {[%clk 0:00:08.4]}
46. Rh6+ {[%clk 0:00:09.5]} 46... Kd5 {[%clk 0:00:07.6]} 47. Ng5 {[%clk
0:00:06.4]} 47... Re7 {[%clk 0:00:07.1]} 48. Nxh7 {[%clk 0:00:05.4]} 48... Bxa4
{[%clk 0:00:06.4]} 49. Nf6+ {[%clk 0:00:05.4]} 49... Kd4 {[%clk 0:00:06.9]} 50.
Ne4 {[%clk 0:00:04.6]} 50... c3 {[%clk 0:00:07.2]} 51. Nd6 {[%clk 0:00:02.1]}
51... c2 {[%clk 0:00:06.7]} 52. Nf5+ {[%clk 0:00:02]} 52... Kc3 {[%clk
0:00:06.7]} 53. Nxe7 {[%clk 0:00:02.1]} 53... c1=Q {[%clk 0:00:07]} 54. Nd5+
{[%clk 0:00:01.5]} 54... Kd4 {[%clk 0:00:06.1]} 0-1